[Event "Senior Men Russian Championship 2022_HL"]
[Site "Saint-Petersburg, Russia"]
[Date "2022.09.28"]
[Round "5.7"]
[White "Osmolny, Vladimir I."]
[Black "Vul, Arkadi Eremeevich"]
[Result "0-1"]
[TimeControl "40+30"]
[WhiteElo "2092"]
[BlackElo "2181"]

1. c4 {[%clk 01:30:56]} {[%emt 00:00:03]} e6 {[%clk 01:30:53]} {[%emt
00:00:08]} 2. Nc3 {[%clk 01:31:09]} {[%emt 00:00:17]} d5 {[%clk 01:31:15]}
{[%emt 00:00:07]} 3. d4 {[%clk 01:31:28]} {[%emt 00:00:12]} c6 {[%clk
01:31:35]} {[%emt 00:00:10]} 4. e4 {[%clk 01:30:13]} {[%emt 00:01:45]} dxe4
{[%clk 01:31:10]} {[%emt 00:00:56]} 5. Nxe4 {[%clk 01:30:37]} {[%emt 00:00:05]}
Bb4+ {[%clk 01:31:35]} {[%emt 00:00:05]} 6. Nc3 {[%clk 01:31:00]} {[%emt
00:00:08]} c5 {[%clk 01:31:48]} {[%emt 00:00:16]} 7. Be3 {[%clk 01:28:51]}
{[%emt 00:02:39]} Nf6 {[%clk 01:30:03]} {[%emt 00:02:14]} 8. a3 {[%clk
01:22:53]} {[%emt 00:06:29]} Bxc3+ {[%clk 01:27:55]} {[%emt 00:02:38]} 9. bxc3
{[%clk 01:23:16]} {[%emt 00:00:06]} Qa5 {[%clk 01:27:05]} {[%emt 00:01:20]} 10.
Bd2 {[%clk 01:16:45]} {[%emt 00:07:02]} Ne4 {[%clk 01:24:13]} {[%emt 00:03:21]}
11. Qc2 {[%clk 01:07:25]} {[%emt 00:09:50]} Nxd2 {[%clk 01:24:12]} {[%emt
00:00:31]} 12. Qxd2 {[%clk 01:07:46]} {[%emt 00:00:09]} cxd4 {[%clk 01:24:25]}
{[%emt 00:00:17]} 13. cxd4 {[%clk 01:08:01]} {[%emt 00:00:15]} Nc6 {[%clk
01:23:37]} {[%emt 00:01:18]} 14. Nf3 {[%clk 01:08:11]} {[%emt 00:00:20]} Ke7
{[%clk 01:13:27]} {[%emt 00:10:40]} 15. Rd1 {[%clk 01:01:07]} {[%emt 00:07:34]}
Rd8 {[%clk 01:11:22]} {[%emt 00:02:35]} 16. Be2 {[%clk 00:54:47]} {[%emt
00:06:50]} b6 {[%clk 01:08:29]} {[%emt 00:03:23]} 17. O-O {[%clk 00:51:10]}
{[%emt 00:04:07]} Qxd2 {[%clk 01:02:52]} {[%emt 00:06:07]} 18. Rxd2 {[%clk
00:51:37]} {[%emt 00:00:03]} Na5 {[%clk 01:00:04]} {[%emt 00:03:19]} 19. Rb1
{[%clk 00:48:06]} {[%emt 00:04:01]} Bb7 {[%clk 00:27:57]} {[%emt 00:32:36]} 20.
c5 {[%clk 00:37:47]} {[%emt 00:10:50]} Be4 {[%clk 00:27:23]} {[%emt 00:01:04]}
21. Rb5 {[%clk 00:29:31]} {[%emt 00:08:46]} Bc6 {[%clk 00:25:07]} {[%emt
00:02:45]} 22. Rb4 {[%clk 00:17:54]} {[%emt 00:12:07]} bxc5 {[%clk 00:15:59]}
{[%emt 00:09:38]} 23. dxc5 {[%clk 00:18:15]} {[%emt 00:00:09]} Rxd2 {[%clk
00:15:14]} {[%emt 00:01:15]} 24. Nxd2 {[%clk 00:18:39]} {[%emt 00:00:06]} Rd8
{[%clk 00:15:35]} {[%emt 00:00:09]} 25. Nf1 {[%clk 00:06:27]} {[%emt 00:12:42]}
Rd5 {[%clk 00:14:57]} {[%emt 00:01:08]} 26. Bf3 {[%clk 00:06:03]} {[%emt
00:00:54]} Rxc5 {[%clk 00:15:19]} {[%emt 00:00:08]} 27. Bxc6 {[%clk 00:06:10]}
{[%emt 00:00:23]} Rxc6 {[%clk 00:08:17]} {[%emt 00:07:32]} 28. Rb5 {[%clk
00:05:27]} {[%emt 00:01:12]} Ra6 {[%clk 00:08:02]} {[%emt 00:00:45]} 29. Ne3
{[%clk 00:03:57]} {[%emt 00:02:00]} f5 {[%clk 00:05:52]} {[%emt 00:02:41]} 30.
g3 {[%clk 00:04:08]} {[%emt 00:00:19]} Kf6 {[%clk 00:05:18]} {[%emt 00:01:03]}
31. f4 {[%clk 00:03:19]} {[%emt 00:01:19]} h6 {[%clk 00:02:11]} {[%emt
00:03:38]} 32. h4 {[%clk 00:03:14]} {[%emt 00:00:35]} g5 {[%clk 00:02:02]}
{[%emt 00:00:39]} 33. hxg5+ {[%clk 00:03:20]} {[%emt 00:00:24]} hxg5 {[%clk
00:02:31]} {[%emt 00:00:01]} 34. Kf2 {[%clk 00:02:15]} {[%emt 00:01:35]} gxf4
{[%clk 00:02:24]} {[%emt 00:00:37]} 35. gxf4 {[%clk 00:02:43]} Nc6 {[%clk
00:02:21]} {[%emt 00:00:34]} 36. Rc5 {[%clk 00:02:01]} {[%emt 00:01:12]} Ne7
{[%clk 00:02:08]} {[%emt 00:00:42]} 37. Nc4 {[%clk 00:01:50]} {[%emt 00:00:42]}
Nd5 {[%clk 00:00:41]} {[%emt 00:01:57]} 38. Kf3 {[%clk 00:02:11]} {[%emt
00:00:08]} Ra4 {[%clk 00:00:46]} {[%emt 00:00:26]} 39. Rc6 {[%clk 00:01:26]}
{[%emt 00:01:15]} Ne7 {[%clk 00:00:42]} {[%emt 00:00:34]} 40. Rc5 {[%clk
00:31:24]} {[%emt 00:00:32]} Ra6 {[%clk 00:30:36]} {[%emt 00:00:36]} 41. Ra5
{[%clk 00:27:18]} {[%emt 00:04:36]} Rxa5 {[%clk 00:14:09]} {[%emt 00:16:58]} 42.
Nxa5 {[%clk 00:27:46]} {[%emt 00:00:02]} e5 {[%clk 00:14:18]} {[%emt 00:00:20]}
43. fxe5+ {[%clk 00:27:52]} {[%emt 00:00:24]} Kxe5 {[%clk 00:14:43]} {[%emt
00:00:05]} 44. Ke3 {[%clk 00:23:58]} {[%emt 00:04:23]} Kd5 {[%clk 00:05:14]}
{[%emt 00:09:59]} 45. Kf4 {[%clk 00:23:11]} {[%emt 00:01:17]} Kc5 {[%clk
00:05:03]} {[%emt 00:00:41]} 46. Ke5 {[%clk 00:22:45]} {[%emt 00:00:56]} Kb5
{[%clk 00:05:25]} {[%emt 00:00:08]} 47. Nb7 {[%clk 00:19:34]} {[%emt 00:03:42]}
Ka4 {[%clk 00:04:04]} {[%emt 00:01:51]} 48. Nd6 {[%clk 00:16:57]} {[%emt
00:03:07]} a6 {[%clk 00:03:55]} {[%emt 00:00:39]} 49. Ke6 {[%clk 00:14:58]}
{[%emt 00:02:27]} Kxa3 {[%clk 00:02:42]} {[%emt 00:01:43]} 50. Kxe7 {[%clk
00:15:15]} {[%emt 00:00:13]} f4 {[%clk 00:03:05]} {[%emt 00:00:06]} 51. Nc4+
{[%clk 00:14:27]} {[%emt 00:01:18]} Kb3 {[%clk 00:02:14]} {[%emt 00:01:21]} 52.
Ne5 {[%clk 00:07:32]} {[%emt 00:07:25]} a5 {[%clk 00:02:33]} {[%emt 00:00:10]}
53. Kd6 {[%clk 00:07:32]} {[%emt 00:00:30]} a4 {[%clk 00:02:47]} {[%emt
00:00:17]} 54. Nd3 {[%clk 00:04:08]} {[%emt 00:03:54]} a3 {[%clk 00:02:31]}
{[%emt 00:00:46]} 55. Kd5 {[%clk 00:04:24]} {[%emt 00:00:14]} f3 {[%clk
00:02:35]} {[%emt 00:00:26]} 56. Ke4 {[%clk 00:03:14]} {[%emt 00:01:39]} f2
{[%clk 00:01:55]} {[%emt 00:01:11]} 57. Kd4 {[%emt 00:00:15]} 0-1

[Event "Senior Men Russian Championship 2022_HL"]
[Site "Saint-Petersburg, Russia"]
[Date "2022.09.28"]
[Round "5.8"]
[White "Filipenko, Alexander V"]
[Black "Kasantsev, Anatolij B."]
[Result "1/2-1/2"]
[TimeControl "40+30"]
[WhiteElo "2171"]
[BlackElo "1908"]

1. e4 {[%clk 01:30:56]} {[%emt 00:00:03]} c5 {[%clk 01:30:45]} {[%emt
00:00:15]} 2. Nf3 {[%clk 01:31:10]} {[%emt 00:00:17]} e6 {[%clk 01:31:03]}
{[%emt 00:00:12]} 3. d4 {[%clk 01:31:34]} {[%emt 00:00:07]} cxd4 {[%clk
01:31:30]} {[%emt 00:00:02]} 4. Nxd4 {[%clk 01:31:53]} {[%emt 00:00:11]} a6
{[%clk 01:31:53]} {[%emt 00:00:07]} 5. c4 {[%clk 01:32:18]} {[%emt 00:00:05]}
Nf6 {[%clk 01:32:10]} {[%emt 00:00:13]} 6. Nc3 {[%clk 01:32:33]} {[%emt
00:00:15]} Bb4 {[%clk 01:32:25]} {[%emt 00:00:14]} 7. Qd3 {[%clk 01:32:54]}
{[%emt 00:00:10]} Qc7 {[%clk 01:32:32]} {[%emt 00:00:23]} 8. a3 {[%clk
01:30:46]} {[%emt 00:02:39]} Be7 {[%clk 01:32:49]} {[%emt 00:00:12]} 9. f4
{[%clk 01:29:22]} {[%emt 00:01:54]} d6 {[%clk 01:33:10]} {[%emt 00:00:09]} 10.
Be2 {[%clk 01:29:09]} {[%emt 00:00:43]} b6 {[%clk 01:30:18]} {[%emt 00:03:22]}
11. O-O {[%clk 01:26:16]} {[%emt 00:03:23]} Bb7 {[%clk 01:29:39]} {[%emt
00:01:10]} 12. f5 {[%clk 01:20:36]} {[%emt 00:06:10]} e5 {[%clk 01:26:49]}
{[%emt 00:03:19]} 13. Nc2 {[%clk 01:19:29]} {[%emt 00:01:37]} Nbd7 {[%clk
01:25:39]} {[%emt 00:01:40]} 14. b4 {[%clk 01:10:36]} {[%emt 00:09:24]} Rc8
{[%clk 01:25:39]} {[%emt 00:00:29]} 15. Ne3 {[%clk 01:02:25]} {[%emt 00:08:41]}
b5 {[%clk 01:23:43]} {[%emt 00:02:25]} 16. Ncd5 {[%clk 00:51:25]} {[%emt
00:11:31]} Bxd5 {[%clk 01:23:05]} {[%emt 00:01:07]} 17. exd5 {[%clk 00:48:52]}
{[%emt 00:03:04]} e4 {[%clk 01:20:08]} {[%emt 00:03:27]} 18. Qd4 {[%clk
00:44:55]} {[%emt 00:04:27]} Qb7 {[%clk 01:16:31]} {[%emt 00:04:06]} 19. cxb5
{[%clk 00:40:41]} {[%emt 00:04:44]} axb5 {[%clk 01:15:33]} {[%emt 00:01:27]} 20.
a4 {[%clk 00:41:00]} {[%emt 00:00:12]} bxa4 {[%clk 01:14:57]} {[%emt 00:01:05]}
21. Rxa4 {[%clk 00:41:20]} {[%emt 00:00:11]} Rb8 {[%clk 01:07:58]} {[%emt
00:07:29]} 22. Bd2 {[%clk 00:35:04]} {[%emt 00:06:46]} Bd8 {[%clk 01:06:18]}
{[%emt 00:02:10]} 23. Ba6 {[%clk 00:22:42]} {[%emt 00:12:52]} Qb6 {[%clk
01:06:12]} {[%emt 00:00:36]} 1/2-1/2

[Event "Senior Men Russian Championship 2022_HL"]
[Site "Saint-Petersburg, Russia"]
[Date "2022.09.28"]
[Round "5.9"]
[White "Mamoshin, Valery"]
[Black "Lisenko, Alexander V"]
[Result "1/2-1/2"]
[TimeControl "40+30"]
[WhiteElo "2203"]
[BlackElo "2307"]

1. e4 {[%clk 01:30:58]} {[%emt 00:00:01]} c5 {[%clk 01:30:22]} {[%emt
00:00:38]} 2. d4 {[%clk 01:31:07]} {[%emt 00:00:21]} cxd4 {[%clk 01:30:45]}
{[%emt 00:00:07]} 3. c3 {[%clk 01:31:32]} {[%emt 00:00:04]} d5 {[%clk
01:26:41]} {[%emt 00:04:35]} 4. exd5 {[%clk 01:31:48]} {[%emt 00:00:14]} Qxd5
{[%clk 01:27:06]} {[%emt 00:00:05]} 5. cxd4 {[%clk 01:32:09]} {[%emt 00:00:09]}
Nc6 {[%clk 01:26:47]} {[%emt 00:00:50]} 6. Nf3 {[%clk 01:32:30]} {[%emt
00:00:08]} e6 {[%clk 01:27:07]} {[%emt 00:00:11]} 7. Nc3 {[%clk 01:32:47]}
{[%emt 00:00:12]} Bb4 {[%clk 01:24:59]} {[%emt 00:02:38]} 8. Bd3 {[%clk
01:31:29]} {[%emt 00:01:47]} Nf6 {[%clk 01:25:04]} {[%emt 00:00:25]} 9. O-O
{[%clk 01:31:50]} {[%emt 00:00:10]} Qd8 {[%clk 01:15:35]} {[%emt 00:09:59]} 10.
Bg5 {[%clk 01:31:19]} {[%emt 00:01:01]} Be7 {[%clk 01:15:40]} {[%emt 00:00:25]}
11. Rc1 {[%clk 01:29:39]} {[%emt 00:02:10]} O-O {[%clk 01:16:02]} {[%emt
00:00:08]} 12. Re1 {[%clk 01:26:02]} {[%emt 00:04:07]} b6 {[%clk 01:05:52]}
{[%emt 00:10:41]} 13. Ne4 {[%clk 00:47:50]} {[%emt 00:38:41]} Bb7 {[%clk
01:04:41]} {[%emt 00:01:41]} 14. Nxf6+ {[%clk 00:40:51]} {[%emt 00:07:29]} Bxf6
{[%clk 01:04:51]} {[%emt 00:00:20]} 15. Bxf6 {[%clk 00:41:13]} {[%emt
00:00:08]} Qxf6 {[%clk 01:04:45]} {[%emt 00:00:35]} 16. Be4 {[%clk 00:39:44]}
{[%emt 00:01:59]} Na5 {[%clk 00:55:05]} {[%emt 00:10:10]} 17. Qd3 {[%clk
00:35:07]} {[%emt 00:05:07]} Bxe4 {[%clk 00:45:24]} {[%emt 00:10:12]} 18. Qxe4
{[%clk 00:35:34]} {[%emt 00:00:02]} Rac8 {[%clk 00:42:41]} {[%emt 00:03:14]} 19.
Ne5 {[%clk 00:35:31]} {[%emt 00:00:33]} Qe7 {[%clk 00:30:11]} {[%emt 00:12:59]}
20. d5 {[%clk 00:33:44]} {[%emt 00:02:18]} Rxc1 {[%clk 00:26:19]} {[%emt
00:04:22]} 21. Rxc1 {[%clk 00:34:06]} {[%emt 00:00:07]} exd5 {[%clk 00:26:42]}
{[%emt 00:00:08]} 22. Qxd5 {[%clk 00:34:13]} {[%emt 00:00:23]} Rd8 {[%clk
00:27:00]} {[%emt 00:00:12]} 23. Nd7 {[%clk 00:21:27]} {[%emt 00:13:16]}
1/2-1/2

[Event "Senior Men Russian Championship 2022_HL"]
[Site "Saint-Petersburg, Russia"]
[Date "2022.09.28"]
[Round "5.10"]
[White "Berlin, Grigoriy"]
[Black "Pushkov, Nikolai"]
[Result "1/2-1/2"]
[TimeControl "40+30"]
[WhiteElo "2186"]
[BlackElo "2206"]

1. d4 {[%clk 01:30:56]} {[%emt 00:00:03]} Nf6 {[%clk 01:30:53]} {[%emt
00:00:07]} 2. Bf4 {[%clk 01:30:55]} {[%emt 00:00:31]} e6 {[%clk 01:30:53]}
{[%emt 00:00:30]} 3. e3 {[%clk 01:31:05]} {[%emt 00:00:21]} b6 {[%clk
01:31:04]} {[%emt 00:00:19]} 4. Nf3 {[%clk 01:30:29]} {[%emt 00:01:05]} Bb7
{[%clk 01:31:29]} {[%emt 00:00:05]} 5. Nbd2 {[%clk 01:29:19]} {[%emt 00:01:40]}
Be7 {[%clk 01:31:03]} {[%emt 00:00:56]} 6. h3 {[%clk 01:29:26]} {[%emt
00:00:23]} c5 {[%clk 01:29:37]} {[%emt 00:01:56]} 7. c3 {[%clk 01:29:46]}
{[%emt 00:00:10]} O-O {[%clk 01:25:58]} {[%emt 00:04:09]} 8. Bd3 {[%clk
01:28:32]} {[%emt 00:01:43]} d5 {[%clk 01:23:48]} {[%emt 00:02:40]} 9. O-O
{[%clk 01:24:29]} {[%emt 00:04:34]} Nbd7 {[%clk 01:21:51]} {[%emt 00:02:27]} 10.
Bh2 {[%clk 01:20:36]} {[%emt 00:04:23]} Ne4 {[%clk 01:19:45]} {[%emt 00:02:35]}
11. Ne5 {[%clk 01:18:37]} {[%emt 00:02:29]} Nxd2 {[%emt 00:05:37]} 12. Qxd2
{[%emt 00:03:24]} Nxe5 {[%clk 01:09:38]} {[%emt 00:01:36]} 13. Bxe5 {[%clk
01:17:51]} {[%emt 00:01:16]} Bd6 {[%clk 01:04:41]} {[%emt 00:05:27]} 14. f4
{[%clk 01:11:05]} {[%emt 00:07:16]} f6 {[%clk 01:04:39]} {[%emt 00:00:32]} 15.
Bxd6 {[%clk 01:11:29]} {[%emt 00:00:06]} Qxd6 {[%clk 01:05:07]} {[%emt
00:00:02]} 16. Qc2 {[%clk 01:07:40]} {[%emt 00:04:19]} h6 {[%clk 01:04:55]}
{[%emt 00:00:42]} 17. Rad1 {[%clk 00:57:37]} {[%emt 00:10:32]} e5 {[%clk
01:00:22]} {[%emt 00:05:03]} 18. Bh7+ {[%clk 00:41:03]} {[%emt 00:17:04]} Kh8
{[%clk 01:00:44]} {[%emt 00:00:09]} 19. Bf5 {[%clk 00:41:29]} {[%emt 00:00:04]}
Rad8 {[%clk 00:46:45]} {[%emt 00:14:28]} 20. Qe2 {[%clk 00:33:33]} {[%emt
00:08:27]} Bc8 {[%clk 00:44:39]} {[%emt 00:02:36]} 21. Qg4 {[%clk 00:28:07]}
{[%emt 00:05:56]} Bxf5 {[%clk 00:42:21]} {[%emt 00:02:48]} 22. Qxf5 {[%clk
00:28:34]} {[%emt 00:00:02]} Rfe8 {[%clk 00:42:17]} {[%emt 00:00:35]} 23. fxe5
{[%clk 00:25:02]} {[%emt 00:04:02]} fxe5 {[%clk 00:42:37]} {[%emt 00:00:09]} 24.
Qh5 {[%clk 00:25:28]} {[%emt 00:00:04]} exd4 {[%clk 00:38:49]} {[%emt
00:04:18]} 25. exd4 {[%clk 00:25:37]} {[%emt 00:00:22]} Re4 {[%clk 00:37:53]}
{[%emt 00:01:26]} 26. dxc5 {[%clk 00:18:50]} {[%emt 00:07:17]} Qxc5+ {[%clk
00:38:20]} {[%emt 00:00:02]} 27. Kh1 {[%clk 00:19:06]} {[%emt 00:00:14]} d4
{[%clk 00:29:44]} {[%emt 00:09:06]} 28. Qg6 {[%clk 00:10:43]} {[%emt 00:08:53]}
Qe5 {[%clk 00:29:06]} {[%emt 00:01:08]} 29. cxd4 {[%clk 00:10:44]} {[%emt
00:00:30]} Rexd4 {[%clk 00:29:19]} {[%emt 00:00:17]} 30. Rde1 {[%clk 00:11:06]}
{[%emt 00:00:07]} Qd6 {[%clk 00:23:23]} {[%emt 00:06:25]} 31. Re6 {[%clk
00:08:49]} {[%emt 00:02:48]} Qc5 {[%clk 00:07:16]} {[%emt 00:16:37]} 32. Rfe1
{[%clk 00:04:19]} {[%emt 00:05:00]} Rg8 {[%clk 00:05:45]} {[%emt 00:02:01]} 33.
R6e5 {[%clk 00:02:50]} {[%emt 00:01:59]} Rd5 {[%clk 00:05:37]} {[%emt
00:00:38]} 34. Re8 {[%clk 00:02:36]} {[%emt 00:00:44]} Rd8 {[%clk 00:05:53]}
{[%emt 00:00:13]} 35. R8e6 {[%clk 00:02:14]} {[%emt 00:00:52]} Rd2 {[%clk
00:05:34]} {[%emt 00:00:48]} 36. a3 {[%clk 00:02:20]} {[%emt 00:00:25]} Rxb2
{[%clk 00:04:02]} {[%emt 00:02:01]} 37. Re8 {[%clk 00:02:22]} {[%emt 00:00:28]}
Rf2 {[%clk 00:04:29]} {[%emt 00:00:03]} 38. Rxg8+ {[%clk 00:02:28]} {[%emt
00:00:25]} Kxg8 {[%clk 00:04:56]} {[%emt 00:00:02]} 39. Re8+ {[%clk 00:02:54]}
{[%emt 00:00:04]} Rf8 {[%clk 00:05:24]} {[%emt 00:00:02]} 40. Qe6+ {[%clk
00:02:49]} {[%emt 00:00:35]} Kh8 {[%clk 00:05:46]} {[%emt 00:00:08]} 41. Re7
{[%clk 00:31:55]} {[%emt 00:01:25]} a5 {[%clk 00:34:16]} {[%emt 00:02:00]} 42.
a4 {[%clk 00:31:22]} {[%emt 00:01:03]} Qc1+ {[%clk 00:33:10]} {[%emt 00:01:35]}
43. Kh2 {[%clk 00:31:40]} {[%emt 00:00:13]} Qf4+ {[%clk 00:33:38]} {[%emt
00:00:02]} 44. Kg1 {[%clk 00:31:44]} {[%emt 00:00:25]} Qd4+ {[%clk 00:30:31]}
{[%emt 00:03:38]} 45. Kh2 {[%clk 00:31:23]} {[%emt 00:00:50]} Qxa4 {[%clk
00:30:21]} {[%emt 00:00:40]} 46. Qxb6 {[%clk 00:31:14]} {[%emt 00:00:39]} Qf4+
{[%clk 00:30:28]} {[%emt 00:00:23]} 47. Kg1 {[%clk 00:31:35]} {[%emt 00:00:09]}
a4 {[%clk 00:30:41]} {[%emt 00:00:18]} 48. Qa7 {[%clk 00:22:26]} {[%emt
00:09:39]} Rc8 {[%clk 00:29:19]} {[%emt 00:01:51]} 49. Re1 {[%clk 00:22:12]}
{[%emt 00:00:43]} Rc1 {[%clk 00:27:46]} {[%emt 00:02:04]} 50. Rxc1 {[%clk
00:21:52]} {[%emt 00:00:51]} Qxc1+ {[%clk 00:28:14]} {[%emt 00:00:02]} 51. Kh2
{[%clk 00:22:21]} Qf4+ {[%clk 00:28:13]} {[%emt 00:00:32]} 52. Kg1 {[%clk
00:22:41]} {[%emt 00:00:09]} Qc4 {[%clk 00:28:33]} {[%emt 00:00:10]} 53. Qe7
{[%clk 00:19:45]} {[%emt 00:03:26]} Kh7 {[%clk 00:26:58]} {[%emt 00:02:05]} 54.
Qf8 {[%clk 00:19:34]} {[%emt 00:00:40]} Qd3 {[%clk 00:26:34]} {[%emt 00:00:55]}
55. Qa8 {[%clk 00:15:40]} {[%emt 00:04:25]} a3 {[%clk 00:26:25]} {[%emt
00:00:38]} 56. Kh2 {[%clk 00:16:01]} {[%emt 00:00:09]} h5 {[%clk 00:22:24]}
{[%emt 00:04:31]} 57. Qa4 {[%clk 00:16:06]} {[%emt 00:00:25]} Qe3 {[%clk
00:22:09]} {[%emt 00:00:45]} 58. Qa5 {[%clk 00:15:46]} {[%emt 00:00:49]} Kh6
{[%clk 00:22:07]} {[%emt 00:00:33]} 59. Qa8 {[%clk 00:14:20]} {[%emt 00:01:56]}
Kg6 {[%clk 00:18:26]} {[%emt 00:04:10]} 60. Qa6+ {[%clk 00:13:55]} {[%emt
00:00:55]} Kh7 {[%clk 00:18:47]} {[%emt 00:00:09]} 61. Qa4 {[%clk 00:14:09]}
{[%emt 00:00:17]} g6 {[%clk 00:18:16]} {[%emt 00:01:01]} 62. Qd7+ {[%clk
00:13:34]} {[%emt 00:01:04]} Kh6 {[%clk 00:18:35]} {[%emt 00:00:12]} 63. Qa4
{[%clk 00:13:53]} {[%emt 00:00:11]} Qe7 {[%clk 00:18:23]} {[%emt 00:00:42]} 64.
Qa8 {[%clk 00:12:55]} {[%emt 00:01:28]} h4 {[%clk 00:17:33]} {[%emt 00:01:19]}
65. Qh8+ {[%clk 00:13:17]} {[%emt 00:00:09]} Kg5 {[%clk 00:18:01]} {[%emt
00:00:02]} 66. Qa8 {[%clk 00:13:31]} {[%emt 00:00:17]} Kf5 {[%clk 00:15:46]}
{[%emt 00:02:44]} 67. Qf3+ {[%clk 00:12:38]} {[%emt 00:01:24]} Ke6 {[%clk
00:15:43]} {[%emt 00:00:32]} 68. Qe4+ {[%clk 00:12:32]} {[%emt 00:00:36]} Kf7
{[%clk 00:16:10]} {[%emt 00:00:03]} 69. Qf3+ {[%clk 00:11:56]} {[%emt
00:01:06]} Kg7 {[%clk 00:16:22]} {[%emt 00:00:18]} 70. Qc3+ {[%clk 00:11:35]}
{[%emt 00:00:50]} Kh7 {[%clk 00:16:46]} {[%emt 00:00:06]} 71. Qa5 {[%clk
00:11:36]} {[%emt 00:00:30]} Qe3 {[%clk 00:15:42]} {[%emt 00:01:34]} 72. Qa4
{[%clk 00:11:12]} {[%emt 00:00:54]} g5 {[%clk 00:15:25]} {[%emt 00:00:47]} 73.
Qd7+ {[%clk 00:10:26]} {[%emt 00:01:16]} Kg6 {[%clk 00:15:49]} {[%emt
00:00:06]} 74. Qc6+ {[%clk 00:10:32]} {[%emt 00:00:23]} Kf5 {[%clk 00:15:56]}
{[%emt 00:00:24]} 75. Qd7+ {[%clk 00:09:25]} {[%emt 00:01:38]} Ke5 {[%clk
00:16:07]} {[%emt 00:00:17]} 76. Qe7+ {[%clk 00:09:16]} {[%emt 00:00:38]} Kd4
{[%clk 00:16:30]} {[%emt 00:00:08]} 77. Qa7+ {[%clk 00:09:38]} {[%emt
00:00:09]} Ke4 {[%clk 00:16:47]} {[%emt 00:00:13]} 78. Qe7+ {[%clk 00:10:01]}
{[%emt 00:00:07]} 1/2-1/2